[Event "Bangabandhu Premier Div League 2023-24"]
[Site "Dhaka"]
[Date "2024.02.10"]
[Round "10.6"]
[White "Pranav Vijay"]
[Black "Rabby, Salim"]
[Result "1-0"]
[ECO "C68"]
[WhiteElo "2252"]
[BlackElo "1931"]
[Annotator "TA"]
[PlyCount "89"]
[EventDate "2024.02.01"]
[EventCountry "BAN"]
[SourceTitle "playchess.com"]
[Source "ChessBase"]
[SourceQuality "1"]
[TimeControl "40/5400+30:1800+30"]

{[%evp 12,89,122,106,132,95,125,132,141,136,162,108,110,104,112,109,101,104,188,179,181,169,152,136,181,175,177,175,279,312,318,305,271,282,385,384,433,445,445,454,571,489,493,449,458,466,470,463,491,488,488,493,458,465,490,473,531,517,608,621,620,629,615,619,5114,5102,4793,4340,29972,29973,29984,29985,29986,29986,29986,29983,29982,29983,29987,29984]} 1. e4 {[%emt 0:00:03]} Nc6 2. Nf3 {[%emt 0:00:09]} e5 {[%emt 0:00:08]} 3. Bb5 {[%emt 0:00:11]} Bc5 {[%emt 0:00:06]} 4. O-O {[%emt 0:00:34]} a6 {[%emt 0:00:07]} 5. Bxc6 {[%emt 0:01:08]} dxc6 {[%emt 0:00:55]} 6. Nxe5 {[%emt 0:00:13]} Nf6 {[%emt 0:00:20]} 7. d3 {[%emt 0:00:21]} h6 {[%emt 1:32:24]} 8. Nc3 {[%emt 0:00:58]} O-O {[%emt 0:00:00]} 9. h3 {[%emt 0:00:11]} Qe7 {[%emt 0:00:00] White is clearly better.} 10. Nf3 {[%emt 0:00:38]} b5 {[%emt 0:00:00]} 11. e5 {[%emt 0:01:06]} ({Better is} 11. Ne2 $18) 11... Nd5 {[%emt 0:00:00]} 12. Ne4 {[%emt 0:00:18]} Bb6 {[%emt 0:00:00]} 13. c4 {[%emt 0:00:24]} bxc4 {[%emt 0:00:00]} 14. dxc4 {[%emt 0:00:02]} Nb4 {[%emt 0:00:00]} (14... f5 $16 {keeps fighting.} 15. Neg5 (15. cxd5 fxe4 16. d6 cxd6 $11) 15... Ne3) 15. a3 {[%emt 0:00:46]} Rd8 {[%emt 0:00:00]} 16. Qe2 $36 {[%emt 1:31:28][%mdl 2048] Black is under strong pressure.} Nd3 {[%emt 0:00:00][%cal Oc8f5]} 17. Rd1 {[%emt 0:00:00]} Nxc1 {[%emt 0:00:00]} 18. Rxd8+ {[%emt 0:00:00]} (18. Raxc1 Rxd1+ 19. Rxd1 Bf5 $16) (18. Rdxc1 c5 $16) 18... Qxd8 {[%emt 0:00:00]} 19. Rxc1 {[%emt 0:00:00]} Bf5 {[%emt 0:00:00]} (19... c5 {was worth a try.} 20. Nc3 Be6) 20. c5 $18 {[%emt 0:00:00]} Ba7 {[%emt 0:00:00] Black is weak on the dark squares} 21. b4 {[%emt 0:00:00]} a5 {[%emt 0:00:00]} 22. Rd1 {[%emt 0:00:00]} (22. bxa5 $6 Be6 23. Qe3 Rb8 $18) 22... Qe8 {[%emt 0:00:00]} 23. Ng3 {[%emt 0:00:00]} ({Weaker is} 23. bxa5 Bxe4 24. Qxe4 Bxc5 $16) 23... Be6 {[%emt 0:00:00]} 24. Nd4 {[%emt 0:00:00]} ({Stronger than} 24. bxa5 Bxc5 25. Qe1 Bf8 $11) 24... Bd5 {[%emt 0:00:00]} 25. Nh5 {[%emt 0:04:30] A dynamic duo of knights.} (25. bxa5 Bxc5 26. Nh5 Kh8 $16) 25... axb4 {[%emt 0:00:00]} 26. axb4 {[%emt 0:00:00]} Rb8 {[%emt 0:00:00]} 27. Qg4 {[%emt 0:00:00][%csl Gh5][%cal Rg4g7]} Qxe5 {[%emt 0:00:00][%cal Og7g6] [#]} 28. f4 $1 {[%emt 0:01:30]} ({Not} 28. Nf5 g6 $11) 28... Qe3+ {[%emt 0:00:00]} 29. Kh2 {[%emt 0:00:00][%csl Gh5][%cal Rg4g7]} g6 {[%emt 0:00:00] [#]} 30. Nf6+ $1 {[%emt 0:00:00]} Kh8 {[%emt 0:11:30]} 31. Nxd5 {[%emt 0:00:00]} cxd5 {[%emt 0:00:00]} 32. Nc6 {[%emt 0:00:00][%csl LRa7,LRb8,LRd5][%cal Bd4c6,Bc6e5,Be5f7,Bf7e5][%mdl 32]} Ra8 {[%emt 0:00:00]} 33. Qf3 {[%emt 0:00:00]} Bxc5 {[%emt 0:00:00]} 34. bxc5 {[%emt 0:00:00]} Qxc5 {[%emt 0:00:00]} 35. Ne5 {[%emt 0:03:30]} c6 {[%emt 0:00:00]} 36. Nxf7+ {[%emt 0:00:30]} Kg7 {[%emt 0:00:00]} 37. Ne5 {[%emt 0:00:00]} Ra3 {[%emt 0:00:00]} 38. Qg4 {[%emt 0:00:00]} Qd6 {[%emt 0:00:00]} 39. Nc4 {[%emt 0:00:00]} h5 {[%emt 0:00:00][%cal Bh6h5,Bh5h4][%mdl 32]} 40. Qg5 {[%emt 0:00:00] White mates.} Qc5 {[%emt 0:00:00]} 41. Nxa3 {[%emt 0:00:00]} Qxa3 {[%emt 0:00:00]} 42. Qe5+ {[%emt 0:00:00]} Kf7 {[%emt 0:00:00]} 43. Rb1 {[%emt 0:00:00]} Qe7 {[%emt 0:00:00]} 44. Qh8 {[%emt 0:00:00]} h4 {[%emt 0:00:00]} 45. Rb7 {[%emt 0:00:00] Weighted Error Value: White=0.08 (flawless) /Black=0.40.  Mistake:       	White=1     	Black=2      Inaccurate:     	---       	Black=3      OK:         	White=18    	Black=9      Best:        	---       	Black=2      Strong:       	White=2     	---} 1-0

[Event "Bangabandhu Premier Div League 2023-24"]
[Site "Dhaka"]
[Date "2024.02.10"]
[Round "10.7"]
[White "Arpan Das"]
[Black "Narayanan, Srinath"]
[Result "1/2-1/2"]
[ECO "B11"]
[WhiteElo "2367"]
[BlackElo "2552"]
[Annotator "TA"]
[PlyCount "30"]
[EventDate "2024.02.01"]
[EventCountry "BAN"]
[SourceTitle "playchess.com"]
[Source "ChessBase"]
[SourceQuality "1"]
[TimeControl "40/5400+30:1800+30"]

{[%evp 10,30,22,23,18,20,32,26,27,17,33,23,22,30,23,29,72,3,60,0,69,0,58]} 1. e4 {[%emt 0:04:06]} c6 {[%emt 1:31:00]} 2. Nc3 {[%emt 0:00:56]} d5 {[%emt 0:00:30]} 3. Nf3 {[%emt 0:00:25]} dxe4 {[%emt 0:00:00]} 4. Nxe4 {[%emt 0:00:03]} Nf6 {[%emt 0:00:00]} 5. Qe2 {[%emt 0:00:04]} Nxe4 {[%emt 0:00:00]} 6. Qxe4 {[%emt 0:00:04]} Nd7 {[%emt 0:00:00]} 7. d4 {[%emt 0:00:08]} Nf6 {[%emt 0:02:30]} 8. Qf4 {[%emt 1:28:44]} g6 {[%emt 0:00:30] White has an edge.} 9. Bd3 {[%emt 0:00:00]} Bg7 {[%emt 0:00:30]} 10. O-O {[%emt 0:00:00]} O-O {[%emt 0:00:00]} 11. Re1 {[%emt 0:01:30]} Qd6 {[%emt 0:01:00]} 12. h3 {[%emt 0:00:30]} Nd5 {[%emt 0:00:00]} 13. Qd2 {[%emt 0:00:00]} (13. Qh4 $16) 13... Nf6 {[%emt 0:00:00]} ({Black should play} 13... c5 $11) 14. Qf4 {[%emt 0:00:00]} Nd5 {[%emt 0:00:00]} 15. Qd2 {[%emt 0:00:00]} Nf6 {[%emt 0:02:00] Weighted Error Value: White=0.30/Black=0.16 (very precise) .  Mistake:       	White=1     	Black=1      Inaccurate:     	---       	Black=1      OK:         	---       	Black=6} 1/2-1/2

[Event "Bangabandhu Premier Div League 2023-24"]
[Site "Dhaka"]
[Date "2024.02.10"]
[Round "10.7"]
[White "Mihir Lal, Das"]
[Black "Mohammed Abdul, Malek"]
[Result "0-1"]
[ECO "D02"]
[WhiteElo "1936"]
[BlackElo "2047"]
[Annotator "NA RC"]
[PlyCount "84"]
[EventDate "2024.02.01"]
[EventCountry "BAN"]
[SourceTitle "playchess.com"]
[Source "ChessBase"]
[SourceQuality "1"]
[TimeControl "40/5400+30:1800+30"]

1. Nf3 d5 {[%emt 0:00:10]} 2. g3 {[%emt 0:00:11]} c5 {[%emt 0:00:07]} 3. Bg2 {[%emt 0:00:14]} Nf6 {[%emt 0:00:02]} 4. O-O {[%emt 0:00:16]} Nc6 {[%emt 0:00:03]} 5. d4 {[%emt 0:00:04]} h6 {[%emt 0:00:18]} 6. a3 {[%emt 0:14:02]} c4 {[%emt 0:02:27]} 7. b3 {[%emt 0:01:45]} cxb3 {[%emt 0:00:02]} 8. cxb3 {[%emt 0:00:12]} Bf5 {[%emt 0:00:04]} 9. Nc3 {[%emt 0:09:16]} e6 {[%emt 0:00:42]} 10. b4 {[%emt 0:05:31]} Rc8 {[%emt 0:01:32]} 11. Bb2 {[%emt 0:01:39]} Bd6 {[%emt 0:00:08]} 12. Rc1 {[%emt 0:00:29]} O-O {[%emt 0:00:03]} 13. Na4 {[%emt 0:01:23]} Qe7 {[%emt 0:10:36]} 14. Ne5 {[%emt 0:05:11]} Bxe5 {[%emt 0:03:28]} 15. dxe5 {[%emt 0:00:16]} Nd7 {[%emt 0:00:04]} 16. f4 {[%emt 0:01:29]} b5 {[%emt 0:00:45]} 17. Nc3 {[%emt 0:02:44]} Nb6 {[%emt 0:11:57]} 18. Nxb5 {[%emt 0:11:01]} Nc4 {[%emt 0:01:57]} 19. Bd4 {[%emt 0:08:01]} Qb7 {[%emt 0:23:37]} 20. Nd6 {[%emt 0:15:58]} Nxd6 {[%emt 0:02:51]} 21. exd6 {[%emt 0:00:03]} Nxd4 {[%emt 0:04:44]} 22. Qxd4 {[%emt 0:00:03]} Qa6 {[%emt 0:00:44]} 23. Rxc8 {[%emt 0:05:11]} Rxc8 {[%emt 0:00:28]} 24. d7 {[%emt 0:07:08]} Rd8 {[%emt 0:00:56]} 25. e4 {[%emt 0:00:04]} dxe4 {[%emt 0:00:18]} 26. Rd1 {[%emt 0:00:45]} Qa4 {[%emt 0:08:49]} 27. Rd2 {[%emt 0:02:03]} Qxa3 {[%emt 0:00:45]} 28. Kf2 {[%emt 0:01:54]} Rxd7 {[%emt 0:06:56]} 29. Qxd7 {[%emt 0:00:30]} e3+ {[%emt 0:00:03]} 30. Ke1 {[%emt 0:03:39]} Qxb4 {[%emt 0:00:59]} 31. Ke2 {[%emt 0:01:17]} exd2 {[%emt 0:00:34]} 32. Qd8+ {[%emt 0:00:24]} Kh7 {[%emt 0:00:11]} 33. Qxd2 {[%emt 0:00:12]} Qc4+ {[%emt 0:00:20]} 34. Ke1 {[%emt 0:02:06]} Qc5 {[%emt 0:00:18]} 35. Bf1 {[%emt 0:00:32]} a5 {[%emt 0:00:40]} 36. h3 {[%emt 0:00:04]} a4 {[%emt 0:00:54]} 37. g4 {[%emt 0:00:20]} Be4 {[%emt 0:00:43]} 38. g5 {[%emt 0:01:30]} a3 {[%emt 0:00:26]} 39. gxh6 {[%emt 0:00:22]} gxh6 {[%emt 0:00:19]} 40. Bd3 {[%emt 0:00:26]} Qg1+ {[%emt 0:01:28]} 41. Bf1 {[%emt 0:30:07]} Qg3+ {[%emt 0:30:26]} 42. Kd1 {[%emt 0:00:57]} Qb3+ {[%emt 0:00:10]} 0-1

[Event "Bangabandhu Premier Div League 2023-24"]
[Site "Dhaka"]
[Date "2024.02.10"]
[Round "10.8"]
[White "Harikrishnan.A.Ra"]
[Black "Abdullah Al, Raison"]
[Result "1-0"]
[ECO "D02"]
[WhiteElo "2454"]
[BlackElo "1839"]
[Annotator "TA"]
[PlyCount "99"]
[EventDate "2024.02.01"]
[EventCountry "BAN"]
[SourceTitle "playchess.com"]
[Source "ChessBase"]
[SourceQuality "1"]
[TimeControl "40/5400+30:1800+30"]

{[%evp 9,98,-1,4,12,11,7,11,1,6,8,33,25,42,-11,0,0,0,-41,-36,-45,-45,-44,-59,-66,-8,-4,0,0,-7,0,0,-10,0,0,0,0,20,25,25,22,22,33,31,27,183,184,231,219,241,245,265,260,404,418,321,257,908,943,929,926,911,889,1589,1546,29966,10462,29971,29969,29977,29978,29972,29966,29979,29979,29985,29986,29987,29988,29988,29989,29989,29990,29992,29993,29995,29996,29996,29997,29998,29999,29999]} 1. d4 {[%emt 0:00:02]} Nf6 {[%emt 0:04:33]} 2. Nf3 {[%emt 0:00:11]} d5 {[%emt 0:00:12]} 3. c3 {[%emt 0:00:05]} c6 {[%emt 0:01:21]} 4. Qc2 {[%emt 0:00:06]} g6 {[%emt 0:00:36]} 5. Bf4 {[%emt 0:00:06]} Bf5 {[%emt 0:01:22]} 6. Qb3 {[%emt 0:00:05]} Qb6 {[%emt 0:00:11]} 7. Nbd2 {[%emt 0:00:06]} Nbd7 {[%emt 0:00:26]} 8. h3 {[%emt 0:00:12] The position is equal.} h5 {[%emt 0:01:38]} 9. e3 {[%emt 0:00:16]} Bg7 {[%emt 0:01:05]} 10. Be2 {[%emt 0:00:41][%cal Bf1e2,Be2c4,Bc4b3][%mdl 32]} O-O {[%emt 0:04:44]} 11. c4 {[%emt 0:01:19]} (11. Nh4 $14) 11... dxc4 {[%emt 0:08:58]} 12. Bxc4 {[%emt 0:02:25]} Ne4 {[%emt 0:00:50]} 13. Qxb6 {[%emt 0:13:32]} Nxb6 {[%emt 0:08:31]} 14. Bb3 {[%emt 0:01:18]} c5 {[%emt 0:00:46]} 15. Be5 {[%emt 0:21:55]} Nxd2 {[%emt 0:06:57]} 16. Kxd2 {[%emt 0:00:45]} c4 {[%emt 0:08:07]} ({Black should try} 16... Rfd8 $15 17. Bxg7 Kxg7) 17. Bxg7 $11 {[%emt 0:00:53]} Kxg7 {[%emt 0:00:04]} 18. Bc2 {[%emt 0:01:36]} Bxc2 {[%emt 0:00:13]} 19. Kxc2 {[%emt 0:00:03]} Rac8 {[%emt 0:01:09]} 20. e4 {[%emt 0:00:40]} e6 {[%emt 0:01:49]} 21. Rad1 {[%emt 0:01:33]} Rfd8 {[%emt 0:00:35]} 22. g4 {[%emt 0:03:16]} hxg4 {[%emt 0:02:50]} 23. hxg4 {[%emt 0:00:05]} Rh8 {[%emt 0:01:33]} 24. g5 {[%emt 0:00:07]} Rxh1 {[%emt 0:01:30]} 25. Rxh1 {[%emt 0:00:05][%mdl 4096] Endgame. KRN-KRN} Nd7 {[%emt 0:06:48]} 26. a4 {[%emt 0:02:32]} f6 $2 {[%emt 0:02:49] [#] A mistake that costs the game.} (26... a5 $11 {and Black has nothing to worry.}) 27. gxf6+ $18 {[%emt 0:00:34]} Nxf6 {[%emt 0:00:12]} (27... Kxf6 $142 28. Rh7 Rd8 29. e5+ Kf5 30. Rf7+ Kg4) 28. Ng5 {[%emt 0:00:07]} Rc6 {[%emt 0:00:57]} 29. e5 {[%emt 0:01:34]} Nh5 {[%emt 0:01:36]} 30. Rh3 {[%emt 0:00:44]} b6 {[%emt 0:05:09]} (30... Ra6 $142 31. Kc3 Kh6 32. Nf7+ Kg7) 31. Rf3 {[%emt 0:00:28]} a6 {[%emt 0:00:51]} 32. Kc3 {[%emt 0:01:27]} Kh6 $2 {[%emt 0:09:54] [#]} (32... Kg8 33. Rf7 Kh8) 33. Nf7+ {[%emt 0:00:13]} Kh7 {[%emt 0:17:19]} 34. Nd8 {[%emt 0:00:08]} Rc7 {[%emt 0:00:17]} 35. Nxe6 {[%emt 0:00:02]} Re7 {[%emt 0:01:05]} 36. d5 {[%emt 0:00:30]} Ng7 {[%emt 0:00:21]} 37. d6 {[%emt 0:00:54]} Rxe6 {[%emt 0:01:07] KRN-KR} 38. d7 {[%emt 0:00:06] White mates.} ({Inferior is} 38. Kxc4 Rxe5 39. Kd4 Re2 $17) 38... Re8 {[%emt 0:00:13]} 39. dxe8=Q {[%emt 0:00:10]} Nxe8 {[%emt 0:00:05] KR-KN} 40. e6 {[%emt 0:00:08]} Nd6 {[%emt 0:00:26]} 41. e7 {[%emt 0:30:06]} Kg7 {[%emt 0:31:16]} 42. Kd4 {[%emt 0:00:06]} b5 {[%emt 0:00:21]} 43. Kd5 {[%emt 0:00:12]} Ne8 {[%emt 0:00:09]} 44. axb5 {[%emt 0:00:48]} axb5 {[%emt 0:00:02]} 45. Rf8 {[%emt 0:00:09]} Nc7+ {[%emt 0:01:28]} 46. Kd6 {[%emt 0:00:13]} b4 {[%emt 0:00:34]} 47. Kxc7 {[%emt 0:00:06]} c3 {[%emt 0:00:07]} 48. e8=Q {[%emt 0:00:06]} cxb2 {[%emt 0:00:25]} 49. Qe7+ {[%emt 0:00:04]} Kh6 {[%emt 0:00:05]} 50. Rh8# {[%emt 0:00:00] Weighted Error Value: White=0.06 (flawless) /Black=0.42.  Mistake:       	White=1     	Black=5      Inaccurate:     	White=1     	---        OK:         	White=9     	Black=12     Best:        	White=3     	---} 1-0

[Event "Bangabandhu Premier Div League 2023-24"]
[Site "Dhaka"]
[Date "2024.02.10"]
[Round "10.8"]
[White "Nayem, Haque"]
[Black "Avik, Sarker"]
[Result "1-0"]
[ECO "C43"]
[WhiteElo "2092"]
[BlackElo "1914"]
[Annotator "NA RC"]
[PlyCount "115"]
[EventDate "2024.02.01"]
[EventCountry "BAN"]
[SourceTitle "playchess.com"]
[Source "ChessBase"]
[SourceQuality "1"]
[TimeControl "40/5400+30:1800+30"]

1. e4 {[%emt 0:00:03]} e5 {[%emt 0:01:06]} 2. Nf3 {[%emt 0:00:03]} Nf6 {[%emt 0:00:11]} 3. d4 {[%emt 0:00:19]} Nxe4 {[%emt 0:00:32]} 4. Bd3 {[%emt 0:00:03]} d5 {[%emt 0:00:09]} 5. Nxe5 {[%emt 0:00:22]} Bd6 {[%emt 0:00:07]} 6. O-O {[%emt 0:01:04]} O-O {[%emt 0:00:09]} 7. c4 {[%emt 0:00:07]} Bxe5 {[%emt 0:00:33]} 8. dxe5 {[%emt 0:00:18]} Nc6 {[%emt 1:31:43]} 9. Bf4 {[%emt 0:30:43]} Nb4 {[%emt 0:00:30]} 10. a3 {[%emt 1:02:28]} Nxd3 {[%emt 0:00:00]} 11. Qxd3 {[%emt 0:00:00]} Nc5 {[%emt 0:01:00]} 12. Qxd5 {[%emt 0:00:00]} Qxd5 {[%emt 0:00:00]} 13. cxd5 {[%emt 0:00:00]} Nd3 {[%emt 0:00:00]} 14. Bg3 {[%emt 0:00:00]} Nxb2 {[%emt 0:00:00]} 15. Nc3 {[%emt 0:00:00]} Bf5 {[%emt 0:00:00]} 16. Nb5 {[%emt 0:00:00]} c6 {[%emt 0:02:30]} 17. Nd6 {[%emt 0:00:00]} Bd3 {[%emt 0:00:00]} 18. dxc6 {[%emt 0:00:00]} bxc6 {[%emt 0:00:00]} 19. Rfc1 {[%emt 0:00:00]} Bb5 {[%emt 0:00:00]} 20. Rab1 {[%emt 0:05:00]} Na4 {[%emt 0:00:00]} 21. Nxb5 {[%emt 0:00:00]} cxb5 {[%emt 0:00:00]} 22. Rxb5 {[%emt 0:01:00]} Rfc8 {[%emt 0:00:00]} 23. Rxc8+ {[%emt 0:00:00]} Rxc8 {[%emt 0:03:30]} 24. h3 {[%emt 0:00:00]} Nc3 {[%emt 0:00:00]} 25. Ra5 {[%emt 0:00:00]} Ne2+ {[%emt 0:00:00]} 26. Kh2 {[%emt 0:00:00]} Nxg3 {[%emt 0:00:00]} 27. Kxg3 {[%emt 0:00:00]} Rc7 {[%emt 0:00:00]} 28. f4 {[%emt 0:00:00]} Kf8 {[%emt 0:00:00]} 29. Ra6 {[%emt 0:00:00]} Ke7 {[%emt 0:00:00]} 30. Kg4 {[%emt 0:04:00]} Rd7 {[%emt 0:00:00]} 31. Kf5 {[%emt 0:00:30]} Rb7 {[%emt 0:00:00]} 32. h4 {[%emt 0:00:00]} Rd7 {[%emt 0:00:00]} 33. h5 {[%emt 0:00:00]} Rb7 {[%emt 0:00:00]} 34. g4 {[%emt 0:00:00]} Rc7 {[%emt 0:00:00]} 35. h6 {[%emt 0:00:00]} g6+ {[%emt 0:00:00]} 36. Kg5 {[%emt 0:00:00]} Rb7 {[%emt 0:00:00]} 37. Rc6 {[%emt 0:00:00]} Kd7 {[%emt 0:00:00]} 38. Rc4 {[%emt 0:00:00]} Rb6 {[%emt 0:00:00]} 39. Ra4 {[%emt 0:04:00]} a6 {[%emt 0:00:00]} 40. Rd4+ {[%emt 0:00:30]} Ke7 {[%emt 0:08:30]} 41. Rd6 {[%emt 0:30:30]} f6+ {[%emt 0:16:16]} 42. Rxf6 {[%emt 0:00:00]} Rxf6 {[%emt 0:00:21]} 43. exf6+ {[%emt 0:00:00]} Ke6 {[%emt 0:14:53]} 44. f5+ {[%emt 0:00:00]} gxf5 {[%emt 0:00:00]} 45. f7 {[%emt 0:00:00]} Kxf7 {[%emt 0:01:00]} 46. Kxf5 {[%emt 0:00:00]} a5 {[%emt 0:00:00]} 47. a4 {[%emt 0:00:00]} Ke7 {[%emt 0:00:00]} 48. Ke5 {[%emt 0:00:00]} Kf7 {[%emt 0:00:00]} 49. Kd5 {[%emt 0:00:56]} Kg6 {[%emt 0:00:00]} 50. Kc5 {[%emt 0:00:05]} Kxh6 {[%emt 0:00:00]} 51. Kb5 {[%emt 0:00:00]} Kg5 {[%emt 0:00:00]} 52. Kxa5 {[%emt 0:00:02]} Kxg4 {[%emt 0:00:00]} 53. Kb6 {[%emt 0:00:17]} h5 {[%emt 0:00:00]} 54. a5 {[%emt 0:00:01]} h4 {[%emt 0:00:00]} 55. a6 {[%emt 0:00:02]} h3 {[%emt 0:00:00]} 56. a7 {[%emt 0:00:02]} Kg3 {[%emt 0:00:00]} 57. a8=Q {[%emt 0:00:09]} Kh2 {[%emt 0:00:00]} 58. Qf3 {[%emt 0:00:21]} 1-0

[Event "Bangabandhu Premier Div League 2023-24"]
[Site "Dhaka"]
[Date "2024.02.10"]
[Round "10.9"]
[White "Puranik, Abhimanyu"]
[Black "Alam, Monjur"]
[Result "1-0"]
[ECO "C02"]
[WhiteElo "2645"]
[BlackElo "1875"]
[Annotator "TA"]
[PlyCount "73"]
[EventDate "2024.02.01"]
[EventCountry "BAN"]
[SourceTitle "playchess.com"]
[Source "ChessBase"]
[SourceQuality "1"]
[TimeControl "40/5400+30:1800+30"]

{[%evp 18,73,24,8,32,31,41,35,42,34,31,33,49,31,35,7,6,12,0,0,18,0,0,0,25,19,37,34,33,20,96,0,127,130,140,139,131,118,140,123,152,150,134,136,227,206,212,162,1234,1212,1679,470,1643,1641,29985,29986,29975,8907]} 1. e4 {[%emt 1:31:00]} e6 {[%emt 0:25:58]} 2. d4 {[%emt 0:00:00]} d5 {[%emt 0:00:02]} 3. e5 {[%emt 0:00:00]} c5 {[%emt 0:00:11]} 4. c3 {[%emt 0:00:00]} Nc6 {[%emt 0:00:07]} 5. Nf3 {[%emt 0:00:00]} Nge7 {[%emt 0:00:59]} 6. Bd3 {[%emt 0:00:00]} cxd4 {[%emt 0:00:56]} 7. cxd4 {[%emt 0:00:00]} Nf5 {[%emt 0:02:36]} 8. Bxf5 {[%emt 0:00:00]} exf5 {[%emt 0:00:07]} 9. Nc3 {[%emt 0:00:00]} Be6 {[%emt 0:00:08]} 10. Ne2 {[%emt 0:00:00]} Bb4+ {[%emt 0:00:59]} 11. Bd2 {[%emt 0:00:00]} Qb6 {[%emt 0:00:20]} 12. O-O {[%emt 0:00:00]} O-O {[%emt 1:04:07] White is slightly better.} 13. h4 {[%emt 0:00:00]} Rac8 {[%emt 0:00:00]} 14. Bxb4 {[%emt 0:00:00]} Qxb4 {[%emt 0:00:00]} 15. b3 {[%emt 0:00:00][%cal Bb2b3,Bb3b4,Bb4b5][%mdl 32]} h6 {[%emt 0:00:00]} 16. Nf4 {[%emt 0:07:30]} Rc7 {[%emt 0:02:00]} 17. Qd3 {[%emt 0:00:00]} Rfc8 {[%emt 0:00:00]} 18. a3 {[%emt 0:00:00]} Qb6 {[%emt 0:01:00]} 19. Qe3 {[%emt 0:00:00]} Na5 {[%emt 0:00:00]} 20. b4 $1 {[%emt 0:00:00]} Nc4 {[%emt 0:00:00]} 21. Qe2 {[%emt 0:00:00]} a5 {[%emt 0:00:00]} 22. Rfb1 {[%emt 0:03:00]} Qa7 {[%emt 0:00:00]} 23. a4 {[%emt 0:00:00]} b6 {[%emt 0:00:00]} (23... axb4 $11 24. Rxb4 b6) 24. h5 {[%emt 0:00:00]} (24. b5 $16) 24... Rc6 {[%emt 0:03:00]} (24... axb4 $11 25. Rxb4 Qa5) 25. b5 {[%emt 0:00:00]} R6c7 {[%emt 0:00:00][%cal Bc6c7,Bc7e7,Be7e8][%mdl 32]} 26. Nh4 {[%emt 0:00:00]} Re7 {[%emt 0:00:00]} 27. Qd3 {[%emt 0:00:00]} Qd7 {[%emt 0:00:00]} 28. Kh2 {[%emt 0:00:00]} Ree8 {[%emt 0:00:00]} 29. g3 {[%emt 0:00:00]} Rc7 {[%emt 0:00:00]} 30. Ra2 {[%emt 0:00:00] White is more active.} Kf8 {[%emt 0:00:00] [#]} (30... Rec8 $16 {keeps fighting.} 31. Re1 Rb7) 31. g4 $1 $18 {[%emt 0:00:00][%mdl 512]} fxg4 {[%emt 0:00:00]} 32. Qh7 {[%emt 0:00:00] aiming for Nxe6+.} Rcc8 $2 {[%emt 0:00:00]} (32... Qd8 33. Qh8+ Ke7 34. Qxg7 Kd7) 33. Nxe6+ {[%emt 0:00:00]} fxe6 {[%emt 0:00:00]} 34. Ng6+ {[%emt 0:00:00]} Kf7 {[%emt 0:00:00]} 35. Rg1 {[%emt 0:00:00]} Rf8 {[%emt 0:00:00]} 36. Rxg4 {[%emt 0:00:00]} Ke8 {[%emt 0:00:00]} 37. Rf4 {[%emt 0:00:00] Weighted Error Value: White=0.11 (very precise) /Black=0.49.  Mistake:       	White=1     	Black=4      Inaccurate:     	White=1     	Black=2      OK:         	White=8     	Black=5      Best:        	White=1     	Black=1      Strong:       	White=1     	---} (37. Nxf8 $142 Qf7 38. Nxe6 (38. Rxg7 Rc7 $18) (38. Ng6 Kd7 $18) 38... Qxh5+ 39. Kg3 Qxg4+ 40. Kxg4 Kd7 41. Nxg7 Nxe5+ 42. dxe5) 1-0